Workbook

Sheet Anwendung
A2: Prozess | B2: Ressource | C2: Menge / Verbrauch | D2: Einheit | E2: Emissionsfaktor ("Einheit" CO2e pro Einheit) | F2: "Einheit" | G2: Treibhausggasemission (CO2e in kg) | H2: Oberkategorie Summe | I2: Anteile | J2: Quelle | K2: V: Energieträger | L2: V: Menge / Verbrauch | M2: V: Einheit | N2: V: Emissionsfaktor ("Einheit" CO2e pro Einheit) | O2: V: "Einheit" | P2: V: Treibhausggasemission (CO2e in kg) | Q2: V: Oberkategorie Summe | R2: V: Anteile | S2: Quelle | T2: Hilfsspalte 1 | U2: Hilfsspalte 2 | V2: Hilfsspalte 3 | W2: Differenz | X2: Hilfsspalte Differenz
A3: Gesamt | G3: 0 | P3: 0
A11: Stand
A12: 07.05.2024
A13: Version 4
A15: Autor
A16: Malte Dietze
A17: Technische Universität Hamburg
A18: Manufacturing Innovations Network
A19: E-Mail: malte.dietze@tuhh.de; malte.dietze@gmx.de
A21: Copyright:
A22: Malte Dietze

Sheet CO2-Faktoren für EGT
A1: CO2-Faktoren für Energieträger
A2: Für die Berechnung von CO2-Emissionen je Energieträger sind die in untenstehender Tabelle abgebildeten Faktoren
A3: bindend. Die Faktoren sind im Einsparkonzept für alle Energieträger hinterlegt, es erfolgt eine automatische Berechnung
A4: der CO2-Emissionen.
A6: Die CO2-Faktoren für die fossilen Brennstoffe entsprechen den Werten der "Tabellarischen Aufstellung der abgeleiteten
A7: Emissionsfaktoren für CO2: Energie & Industrieprozesse" des Umweltbundesamts (UBA) vom 15.04.2020. Die Werte für
A8: biogene Energieträger sind aus der UBA-Studie "Emissionsbilanz erneuerbarer Energieträger" vom November 2019
A9: abgeleitet. Es handelt sich um CO2-Äquivalente der direkten Emissionen und der notwendigen Vorketten.
A10: Für Biomasse Holz wird der Mittelwert der dort aufgeführten Holzarten verwendet.
A12: Der CO2-Faktor für „Strom (Energieträgerwechsel zu Strom)“ beruht auf einer Modellrechnung eines BMWK-Projektes
A13: bezogen auf das Jahr 2028. Es wird angenommen, dass die CO2-Intensität des deutschen Stromsektors in den kommenden
A14: Jahren insbesondere auf Grund des Kohleausstiegs und des Ausbaus erneuerbarer Energien voraussichtlich deutlich
A15: abnehmen wird.
A16: Für die Bewertung von Effizienzmaßnahmen im Bereich elektrischer Energie in Bezug auf CO2 wird als CO2-Faktor für
A17: „Strom (Effizienzmaßnahme)“ der CO2-Faktor des Strominlandsverbrauchs von 2021 herangezogen. Dies soll eine
A18: ungünstige Bewertung von sinnvollen Maßnahmen verhindern und der Wichtigkeit der Einsparung von elektrischer
A19: Energie Rechnung tragen.
A21: Sofern bereits erneuerbare Energien zur Bereitstellung von Wärme oder Strom eingesetzt werden, ist es zulässig, für den
A22: Referenz- bzw. Ist-Zustand den Faktor für „Erdgas“ bzw. „Strom (Effizienzmaßnahme)“ zu verwenden.
A24: Die Anpassung der CO2-Faktoren erfolgt regelmäßig auf Basis der neuesten verfügbaren Daten
A26: Es ist zu beachten, dass sich die Faktoren auf den Heizwert der Energieträger beziehen. Sollte der Energieverbrauch
A27: brennwertbezogen vorliegen, ist dieser zunächst mittels Tabelle 3 umzurechnen.
A40: Tabelle 2: CO2-Faktoren der Energieträger
A41: Energieträger | B41: Einheit | C41: CO2-Faktor | D41: Quelle, sofern abweichend | E41: Anmerkung
A42: Altöl | B42: kgCO2/kWh | C42: 0.288
A43: Biodiesel | B43: kgCO2/kWh | C43: 0.07 | E43: Nur bei Erzeugung auf dem Betriebsgelände
A44: Bioethanol | B44: kgCO2/kWh | C44: 0.043 | E44: Abschnitt „Definition von Wasserstoff (Erneuerbare Quelle) beachten
A45: Biogas | B45: kgCO2/kWh | C45: 0.152 | E45: Abschnitt „Definition von Wasserstoff (Erneuerbare Quelle) beachten
A46: Biomasse Holz, trocken <20% Restfeuchte | B46: kgCO2/kWh | C46: 0.027 | E46: Anforderungen an Biomasseanlagen und Biomasse aus Merkblatt Modul 2 beachten
A47: Braunkohle | B47: kgCO2/kWh | C47: 0.383
A48: Diesel, LKW (7,5t) - Massengut | B48: kgCO2/km | C48: 0.000147 | D48: http://www.co2-sachverstaendiger.de/pdf/DSLV-Leitfaden%20Berechnung%20von%20THG-Emissionen%20in%20Spedition%20und%20Logistik.pdf
A49: Deponiegas | B49: kgCO2/kWh | C49: 0.05
A50: Erdgas | B50: kgCO2/kWh | C50: 0.201
A51: Flüssiggas | B51: kgCO2/kWh | C51: 0.239
A52: Heizöl leicht / Diesel | B52: kgCO2/kWh | C52: 0.266
A53: Heizöl schwer | B53: kgCO2/kWh | C53: 0.288
A54: Klärgas | B54: kgCO2/kWh | C54: 0.05
A55: Klärschlamm | B55: kgCO2/kWh | C55: 0.01
A56: Nah- / Fernwärme | B56: kgCO2/kWh | C56: 0.28
A57: Pellets | B57: kgCO2/kWh | C57: 0.036
A58: Rohbenzin | B58: kgCO2/kWh | C58: 0.264
A59: Steinkohle | B59: kgCO2/kWh | C59: 0.335
A60: Strom (Effizienzmaßnahme) | B60: kgCO2/kWh | C60: 0.435 | E60: CO2-Faktor für die Bilanzierung von Einsparungen an elektrischer Energie
A61: Strom (Energieträgerwechsel zu Strom) | B61: kgCO2/kWh | C61: 0.107 | E61: CO2-Faktor für die Bilanzierung von Mehrverbräuchen an elektrischer Energie beim Wechsel zu elektrischer Energie
A62: Strom (Erneuerbare Quelle) | B62: kgCO2/kWh | C62: 0 | E62: Abschnitt „Definition von Strom (erneuerbare Quelle)“ beachten
A63: Strommix, Deutschland | B63: kgCO2/kWh | C63: 0.334 | D63: https://app.electricitymaps.com/zone/DE
A64: Wasserstoff | B64: kgCO2/kWh | C64: 0.385
A65: Wasserstoff (Erneuerbare Quelle) | B65: kgCO2/kWh | C65: 10 | E65: Abschnitt „Definition von Wasserstoff (Erneuerbare Quelle) beachten

Sheet Alph. Aufstellung der Res.
A1: Alphabetische Aufstellung der Ressourcen
I2: https://www.bafa.de/SharedDocs/Downloads/DE/Energie/eew_infoblatt_co2_faktoren_2024.pdf?__blob=publicationFile&v=2
A3: Tabelle 5: Alphabetische Aufstellung der Ressourcen
A4: Bezeichnung | B4: Alternative Bezeichnungen | C4: Äquivalent zu | D4: CO2-Faktor in kgCO2- äquiv/ kg | E4: Einheit CO2-Faktor | F4: Kategorie | G4: Quelle sofern abweichend
A5: 1,2-Dichlorethan | B5: Chloräther | D5: 0.97 | E5: kgCO2/kg | F5: OV
A6: 1,3-Butadien | B6: Vinylethylen | D6: 1.2 | E6: kgCO2/kg | F6: OV
A7: 1-Butanol | B7: n-Butanol | D7: 3.26 | E7: kgCO2/kg | F7: OV
A8: Acetylen | B8: Ethin | D8: 2.98 | E8: kgCO2/kg | F8: OV
A9: Adipinsäure | B9: Adipinsäure | D9: 13.2 | E9: kgCO2/kg | F9: OV
A10: Altpapierstoff | D10: 0.86 | E10: kgCO2/kg | F10: A
A11: Altöl | D11: 0.29 | E11: kgCO2/kg | F11: OV
A12: Aluminium, Gusslegierung | D12: 5.71 | E12: kgCO2/kg | F12: Me
A13: Aluminium, Knetlegierung | D13: 13.92 | E13: kgCO2/kg | F13: Me
A14: Aluminium, primär | D14: 10 | E14: kgCO2/kg | F14: Me
A15: Aluminium, sekundär | D15: 0.52 | E15: kgCO2/kg | F15: Me
A16: Alumiumhydroxid(Al(OH)3) | D16: 1.01 | E16: kgCO2/kg | F16: Mi
A17: Ameisensäure(CH₂O₂) | B17: Methansäure | D17: 2.29 | E17: kgCO2/kg | F17: OV
A18: Amin(NMe3) | B18: Amin | D18: 2.37 | E18: kgCO2/kg | F18: AV
A19: Ammoniak(NH3) | B19: Azan | D19: 2.73 | E19: kgCO2/kg | F19: AV
A20: Anilin(C6H7N ) | B20: Benzenamin | D20: 3.35 | E20: kgCO2/kg | F20: OV
A21: Antimon(Sb) | B21: Antimon | D21: 8.52 | E21: kgCO2/kg | F21: Me
A22: Argon(Ar) | B22: Argon | D22: 1.37 | E22: kgCO2/kg | F22: AV
A23: Bariumsulfat(Ba(SO4)) | B23: Barit | D23: =9.63*10^-2 -> 0.0963 | E23: kgCO2/kg | F23: Mi
A24: Bariumcarbonat(BaCO3) | B24: Witherit | D24: 1.15 | E24: kgCO2/kg | F24: Mi
A25: Baumwollgewebe | D25: 11.1 | E25: kgCO2/kg | F25: A
A26: Bauxit | C26: Gibbsit | D26: =2.69*10^-2 -> 0.0269 | E26: kgCO2/kg | F26: Mi
A27: Bentonit | D27: =4.72*10^-2 -> 0.0472 | E27: kgCO2/kg | F27: Mi
A28: Benzen(C6H6) | B28: Benzol | D28: 1.95 | E28: kgCO2/kg | F28: OV
A29: Beton | D29: =6.12*10^-2 -> 0.0612 | E29: kgCO2/kg | F29: Mi
A30: Bimsstein | B30: Bims Pumis | D30: =8.23*10^-3 -> 0.00823 | E30: kgCO2/kg | F30: Mi
A31: Bitumen | D31: 0.33 | E31: kgCO2/kg | F31: OV
A32: Blei(Pb) | D32: 1.36 | E32: kgCO2/kg | F32: Me
A33: Blei, sekundär(Pb) | D33: 0.5 | E33: kgCO2/kg | F33: Me
A34: Borate | C34: Boracit | D34: 1.52 | E34: kgCO2/kg | F34: Mi
A35: Borsäure(H3BO3) | B35: Orthoborsäure | D35: 0.98 | E35: kgCO2/kg | F35: AV
A36: Bronze | C36: Aluminiumbronze | D36: 7.03 | E36: kgCO2/kg | F36: Me
A37: Butene(C4H8) | B37: Butylene | C37: But-1-en | D37: 1.62 | E37: kgCO2/kg | F37: OV
A38: Calciumcarbonat(CaCO3) | B38: Kalk | D38: =5.77*10^-3 -> 0.00577 | E38: kgCO2/kg | F38: Mi
A39: Calciumhydroxid(Ca(OH)2) | B39: Calciumdihydroxid | D39: 0.89 | E39: kgCO2/kg | F39: Mi
A40: Calciumfluorid(CaF2) | B40: Flussspat | D40: 0.21 | E40: kgCO2/kg | F40: Mi
A41: Calciumsulfat(CaSO4) | B41: Gips | D41: =7.51*10^-3 -> 0.00751 | E41: kgCO2/kg | F41: Mi
A42: Chlor(Cl) | D42: 0.59 | E42: kgCO2/kg | F42: AV
A43: Chlormethan(CH3Cl) | B43: Methylchlorid | D43: 3.18 | E43: kgCO2/kg | F43: OV
A44: Chrom(Cr) | D44: 27.35 | E44: kgCO2/kg | F44: Me
A45: Chromit(FeCr2O4) | B45: Chromerze | D45: =4.65*10^-2 -> 0.0465 | E45: kgCO2/kg | F45: Mi
A46: Cyclohexan(C6H12) | B46: Hexahydrobenzol | D46: 2.49 | E46: kgCO2/kg | F46: OV
A47: Dichlormethan(CH2Cl2) | B47: Methylenchlorid | D47: 3.43 | E47: kgCO2/kg | F47: OV
A48: Dolomit(CaMg(CO3)2) | B48: Dolomitspat | D48: 0.07 | E48: kgCO2/kg | F48: Mi
A49: Edelstahlblech | D49: 5.18 | E49: kgCO2/kg | F49: Me
A50: Eisen(Fe) | D50: 1.76 | E50: kgCO2/kg | F50: Me
A51: Eisenerz | B51: Magnetit | C51: Pyrit | D51: =8.49*10^-3 -> 0.00849 | E51: kgCO2/kg | F51: Mi
A52: Eisenerzkonzentrat | D52: =8.83*10^-2 -> 0.0883 | E52: kgCO2/kg | F52: Mi
A53: Epoxidharz | B53: Kunstharz | D53: 4.78 | E53: kgCO2/kg | F53: K
A54: Essigsäure(C2H4O2) | B54: Ethansäure | D54: 1.63 | E54: kgCO2/kg | F54: OV
A55: Ethan(C2H6) | D55: 0.89 | E55: kgCO2/kg | F55: OV
A56: Ethylbenzol(C8H10) | B56: Ethylbenzen | D56: 2.27 | E56: kgCO2/kg | F56: OV
A57: Ethen(C2H4) | B57: Ethylen | D57: 1.46 | E57: kgCO2/kg | F57: OV
A58: Ethylenoxid(C2H4O) | B58: Oxiran | D58: 1.85 | E58: kgCO2/kg | F58: OV
A59: Fluorpolymere(PTFE) | D59: 120.4 | E59: kgCO2/kg | F59: K
A60: Formaldehyd(CH2O) | B60: Methanal | C60: Formalin | D60: 0.92 | E60: kgCO2/kg | F60: OV
A61: Gallium(Ga) | D61: 170.02 | E61: kgCO2/kg | F61: Me
A62: Gesteinsmehl | C62: Schluff | D62: =6.35*10^-2 -> 0.0635 | E62: kgCO2/kg | F62: Mi
A63: GFK (Glasfaserverstärkte Kunststoffe) | D63: 8.55 | E63: kgCO2/kg | F63: K
A64: Glas (Behälterglas/Flachglas) | D64: 1 | E64: kgCO2/kg | F64: Mi
A65: Glasfasern | D65: 2.42 | E65: kgCO2/kg | F65: Mi
A66: Glaswolle | D66: 2.66 | E66: kgCO2/kg | F66: Mi
A67: Gold(Au) | D67: 47790.29 | E67: kgCO2/kg | F67: Me
A68: Graphit | D68: =6.92*10^-2 -> 0.0692 | E68: kgCO2/kg | F68: Mi
A69: Helium(He) | D69: 8.56 | E69: kgCO2/kg | F69: AV
A70: Holz, unbehandelt, trocken | D70: 0.12 | E70: kgCO2/kg | F70: A
A71: Holzstoff | B71: Holzschliff | D71: 1.55 | E71: kgCO2/kg | F71: A
A72: Hüttensand | B72: Schlackensand | D72: 0.1 | E72: kgCO2/kg | F72: Mi
A73: Hydrauliköl | D73: 0.02 | E73: kgCO2/kg | F73: OV
A74: Hydroxybenzol(C6H6O) | B74: Phenol | D74: 2.95 | E74: kgCO2/kg | F74: OV
A75: Ilmenit(FeTiO3) | B75: Menaccanit | D75: 0.13 | E75: kgCO2/kg | F75: Mi
A76: Indium(In) | D76: 117.52 | E76: kgCO2/kg | F76: Me
A77: Isopropylbenzol(C9H12) | B77: Cumol | D77: 2.32 | E77: kgCO2/kg | F77: OV
A78: Kalisalz | B78: Sylvin | C78: Kieserit | D78: =2.68*10^-2 -> 0.0268 | E78: kgCO2/kg | F78: Mi
A79: Kaolin | B79: Porzellanerde | D79: 0.21 | E79: kgCO2/kg | F79: Mi
A80: Kies(Baukies) | D80: =4.85*10^-3 -> 0.00485 | E80: kgCO2/kg | F80: Mi
A81: Kieselgur | B81: Bergmehl | D81: 0.44 | E81: kgCO2/kg | F81: Mi
A82: Kobalt(Co) | D82: 47.62 | E82: kgCO2/kg | F82: Me
A83: Kohlenstofffaserverstärkte Kunststoffe | D83: 83.64 | E83: kgCO2/kg | F83: K
A84: Koks | D84: 0.75 | E84: kgCO2/kg | F84: AV
A85: Kryolith(Na2NaAlF6) | B85: Eisstein | D85: 2.56 | E85: kgCO2/kg | F85: Mi
A86: Kupfer, primär(Cu) | D86: 6.66 | E86: kgCO2/kg | F86: Me
A87: Kupfer, sekundär(Cu) | D87: 1.73 | E87: kgCO2/kg | F87: Me
A88: Kupferkonzentrate | D88: 1.14 | E88: kgCO2/kg | F88: Mi
A89: Kühlschmierstoff, Ölhaltig | D89: 3.7 | E89: kgCO2/kg | G89: https://www.nc-fertigung.de/der-kss-fuer-prozesskosteneinsparung-und-nachhaltigkeit
A90: Kühlschmierstoff, Ölfrei | D90: 2.3 | E90: kgCO2/kg | G90: https://www.nc-fertigung.de/der-kss-fuer-prozesskosteneinsparung-und-nachhaltigkeit
A91: Lack Lösemittelbasis | D91: 1.99 | E91: kgCO2/kg | F91: OV
A92: Leim / Klebstoffe | D92: 5.59 | E92: kgCO2/kg | F92: OV
A93: Lithium(Li) | D93: 79.29 | E93: kgCO2/kg | F93: Me
A94: Magnesium(Mg) | D94: 28.81 | E94: kgCO2/kg | F94: Me
A95: Magnesiumsulfat(MgSO4) | B95: Bittersalz | D95: 1.04 | E95: kgCO2/kg | F95: Mi
A96: Mangan(Mn) | D96: 5.48 | E96: kgCO2/kg | F96: Me
A97: Manganerz | B97: Braunstein | D97: =8.69*10^-2 -> 0.0869 | E97: kgCO2/kg | F97: Mi
A98: Messing | D98: 5.55 | E98: kgCO2/kg | F98: Me
A99: Methan(CH4) | B99: Erdgas | D99: 0.66 | E99: kgCO2/kg | F99: OV
A100: Methan, biogen (CH4) | B100: Biogas | D100: 0.86 | E100: kgCO2/kg | F100: OV
A101: Methanol(CH3OH) | B101: Methylalkohol | D101: 0.66 | E101: kgCO2/kg | F101: OV
A102: Molybdän(Mo) | D102: 17.07 | E102: kgCO2/kg | F102: Me
A103: Molybdänerz | B103: Molybdänit | C103: Wulfenit | D103: 7.24 | E103: kgCO2/kg | F103: Mi
A104: Naphtha | B104: Rohbenzin | D104: 0.37 | E104: kgCO2/kg | F104: OV
A105: Natriumcarbonat(Na2CO3) | B105: Soda | D105: 1.25 | E105: kgCO2/kg | F105: Mi
A106: Natriumhydroxid(NaOH) | B106: Natronlauge | D106: 1.28 | E106: kgCO2/kg | F106: AV
A107: Naturkautschuk | D107: 2.71 | E107: kgCO2/kg | F107: K
A108: Nickel(Ni) | D108: 19.89 | E108: kgCO2/kg | F108: Me
A109: Nickel, sekundär(Ni) | D109: 1.04 | E109: kgCO2/kg | F109: Me
A110: Nickelerz | D110: 0.98 | E110: kgCO2/kg | F110: Mi
A111: Niobkonzentrate | D111: 0.18 | E111: kgCO2/kg | F111: Mi
A112: Palladium(Pd) | D112: 11227.61 | E112: kgCO2/kg | F112: Me
A113: Papier | D113: 1.38 | E113: kgCO2/kg | F113: A
A114: Pappe Kartonage | D114: 0.62 | E114: kgCO2/kg | F114: A
A115: Perlit (Gestein) | B115: Obsidian | D115: =4.14*10^-2 -> 0.0414 | E115: kgCO2/kg | F115: Mi
A116: Polyethylenterephthalat | B116: PET | D116: 2.75 | E116: kgCO2/kg | F116: K
A117: Pflanzliche Öle | D117: 1.62 | E117: kgCO2/kg | F117: OV
A118: Phosphate | C118: Dihydrogen- phosphate | D118: 0.18 | E118: kgCO2/kg | F118: Mi
A119: Phosphor, weiß(P) | D119: 14.32 | E119: kgCO2/kg | F119: AV
A120: Phthalsäureanhydrid(C8H4O3) | B120: 2-Benzofuran-1,3-dion | D120: 2.61 | E120: kgCO2/kg | F120: OV
A121: Platin(Pt) | D121: 69410.02 | E121: kgCO2/kg | F121: Me
A122: Polyethylen, hohe Dichte | B122: HDPE | D122: 1.92 | E122: kgCO2/kg | F122: K
A123: Polyethylen, geringe Dichte | B123: LDPE | D123: 1.96 | E123: kgCO2/kg | F123: K
A124: Polypropylen | B124: PP | D124: 1.9 | E124: kgCO2/kg | F124: K
A125: Polystyrol | B125: PS | D125: 3.78 | E125: kgCO2/kg | F125: K
A126: Polystyrol, expandiertes | B126: EPS | D126: 9.62 | E126: kgCO2/kg | F126: K
A127: Polyurethane | B127: PUR | D127: 5.05 | E127: kgCO2/kg | F127: K
A128: Propan(C3H8) | D128: 0.86 | E128: kgCO2/kg | F128: OV
A129: Propen(C3H6) | D129: 1.5 | E129: kgCO2/kg | F129: OV
A130: Propylenglycol(C3H8O2) | B130: 1,2-Propandiol | D130: 3.68 | E130: kgCO2/kg | F130: OV
A131: Propylenoxid(C3H6O) | B131: 2-Methyloxiran | D131: 4.1 | E131: kgCO2/kg | F131: OV
A132: PVC (Polyvinylchlorid) | B132: Poly(1-chlorethylen) | D132: 1.9 | E132: kgCO2/kg | F132: K
A133: p-Xylol | B133: 1,4-Dimethylbenzol | C133: o-Xylol | D133: 1.73 | E133: kgCO2/kg | F133: OV
A134: Quarz, Quarzite | B134: Tiefquarz α-Quarz | D134: 0.24 | E134: kgCO2/kg | F134: Mi
A135: Quecksilber(Hg) | D135: 11.55 | E135: kgCO2/kg | F135: Me
A136: Recycling-Kunststoff | D136: 1.16 | E136: kgCO2/kg | F136: K
A137: Rhodium(Rh) | D137: 80426.88 | E137: kgCO2/kg | F137: Me
A138: Ruß | D138: 1.87 | E138: kgCO2/kg | F138: AV
A139: Salzsäure(HCl) | B139: Chlorwasserstoffsäure | D139: 0.58 | E139: kgCO2/kg | F139: AV
A140: Sand (Bausand) | D140: =4.85*10^-3 -> 0.00485 | E140: kgCO2/kg | F140: Mi
A141: Sauerstoff, flüssig(O2) | D141: 0.55 | E141: kgCO2/kg | F141: AV
A142: Schamottstein | B142: Schamott | D142: 0.87 | E142: kgCO2/kg | F142: Mi
A143: Schiefer | D143: =8.6*10^-3 -> 0.0086 | E143: kgCO2/kg | F143: Mi
A144: Schmieröl | D144: 1.22 | E144: kgCO2/kg | F144: OV
A145: Schmirgel(Al2O3) | B145: Korund | D145: =2.9*10^-2 -> 0.029 | E145: kgCO2/kg | F145: Mi
A146: Schwefel(S) | D146: 0.13 | E146: kgCO2/kg | F146: AV
A147: Schwefelsäure(H2SO4) | B147: Schwefel(VI)-säure | C147: schwefelige | D147: 0.11 | E147: kgCO2/kg | F147: AV
A148: Selen(Se) | D148: 3.41 | E148: kgCO2/kg | F148: Me
A149: Siedesalz | D149: =3.92*10^-2 -> 0.0392 | E149: kgCO2/kg | F149: Mi
A150: Silber(Ag) | D150: 449.39 | E150: kgCO2/kg | F150: Me
A151: Silicate | B151: Glimmer | D151: 77.61 | E151: kgCO2/kg | F151: Mi
A152: Siliciumdioxid | B152: Quarzsand | D152: =4.34*10^-2 -> 0.0434 | E152: kgCO2/kg | F152: Mi
A153: Silizium(Si) | D153: 77.61 | E153: kgCO2/kg | F153: AV
A154: Sillimanit | B154: Alumosilikat | D154: =2.9*10^-2 -> 0.029 | E154: kgCO2/kg | F154: Mi
A155: Spanplatte | D155: 0.47 | E155: kgCO2/kg | F155: A
A156: Splitt | D156: =2.3*10^-3 -> 0.0023 | E156: kgCO2/kg | F156: Mi
A157: Stahl (Elektrostahl) | D157: 0.55 | E157: kgCO2/kg | F157: Me
A158: Stahl (Konverterstahl) | D158: 2.18 | E158: kgCO2/kg | F158: Me
A159: Stahl, sekundär | D159: =3.4*10^-2 -> 0.034 | E159: kgCO2/kg | F159: Me
A160: Stärke(C6H10O5) | B160: D-Glucose | D160: 1.09 | E160: kgCO2/kg | F160: OV
A161: Salz(NaCl) | D161: 0.27 | E161: kgCO2/kg | F161: Mi
A162: Steinwolle | D162: 1.32 | E162: kgCO2/kg | F162: Mi
A163: Stickstoff, flüssig(N2) | D163: 0.22 | E163: kgCO2/kg | F163: AV
A164: Stroh/Heu | D164: =9.02*10^-2 -> 0.0902 | E164: kgCO2/kg | F164: A
A165: Styrol(C8H8) | B165: Styren | D165: 3.29 | E165: kgCO2/kg | F165: OV
A166: Talk | B166: Steatit Speckstein | D166: =2.94*10^-2 -> 0.0294 | E166: kgCO2/kg | F166: Mi
A167: Tantal(Ta) | D167: 166.03 | E167: kgCO2/kg | F167: Me
A168: Tantalkonzentrate | D168: 0.18 | E168: kgCO2/kg | F168: Mi
A169: Thallium(Tl) | D169: 331.81 | E169: kgCO2/kg | F169: Me
A170: Tiermehl | D170: =2.39*10^-2 -> 0.0239 | E170: kgCO2/kg | F170: A
A171: Titan(Ti) | D171: 50.86 | E171: kgCO2/kg | F171: Me
A172: Toluol(C7H8) | B172: Retinaphtha | D172: 1.59 | E172: kgCO2/kg | F172: OV
A173: Torf (nur Einsparung) | D173: =1.4*10^-2 -> 0.014 | E173: kgCO2/kg | F173: A
A174: Trass | B174: Puzzolan | D174: =2.92*10^-2 -> 0.0292 | E174: kgCO2/kg | F174: Mi
A175: VE-Wasser / technisches Wasser(H2O) | D175: =4.4*10^-4 -> 0.00044 | E175: kgCO2/kg | F175: AV
A176: Vermikulit | D176: 0.12 | E176: kgCO2/kg | F176: Mi
A177: Vinylchlorid(C2H3Cl) | B177: Chlorethen | D177: 1.53 | E177: kgCO2/kg | F177: K
A178: Wasser(H2O) | D178: =3.3*10^-4 -> 0.00033 | E178: kgCO2/kg | F178: AV
A179: Wasserglas | B179: Natronwasserglas | D179: 0.77 | E179: kgCO2/kg | F179: Mi
A180: Wasserstoff(H2) | D180: 12.82 | E180: kgCO2/kg | F180: AV
A181: Wasserstoff (Erneuerbare Quelle)12 | D181: 0 | E181: kgCO2/kg | F181: AV
A182: Wasserstoffperoxid(H2O2) | D182: 1.13 | E182: kgCO2/kg | F182: AV
A183: Weitere Inertgase | C183: Neon | D183: 149.58 | E183: kgCO2/kg | F183: AV
A184: Wismut(Bi) | D184: 22.1 | E184: kgCO2/kg | F184: Me
A185: Wolframerz | B185: Wolframit | D185: 5.53 | E185: kgCO2/kg | F185: Mi
A186: Zellstoff (Sulfatzellstoff) | D186: 0.35 | E186: kgCO2/kg | F186: A
A187: Zellstoff (Sulfitzellstoff) | D187: 1.09 | E187: kgCO2/kg | F187: A
A188: Zement | D188: 0.79 | E188: kgCO2/kg | F188: Mi
A189: Zementklinker | D189: 0.94 | E189: kgCO2/kg | F189: Mi
A190: Zink(Zn) | D190: 2.72 | E190: kgCO2/kg | F190: Me
A191: Zinkerze | B191: Zinksulfid | D191: 0.51 | E191: kgCO2/kg | F191: Mi
A192: Zinn(Sn) | D192: 10.15 | E192: kgCO2/kg | F192: Me
A193: Zucker | C193: Glucose | D193: 0.55 | E193: kgCO2/kg | F193: OV

Sheet beispiel_UBA (hidden)
A1: Berechnen Sie die CO2e-Emissionen an Ihrem Standort (Scope 1 und 2 incl. Vorketten im Scope 3) | D1: (CO2e steht dabei für CO2-Äquivalente)
A3: Sie möchten einen ersten Überblick über die Treibhausgasemissionen Ihres Betriebs am Standort in einem Jahr? --> Tragen Sie unten die Jahresverbrauchswerte der von Ihnen genutzen Energieträger ein.
A4: Achten Sie dabei auf die korrekte Einheit. Die Verbrauchsdaten finden Sie in den Rechnungen Ihres Energieversorgers, bzw. des jeweiligen Dienstleisters/Lieferanten.
A5: Möchten Sie weitere Emissionsquellen aufnehmen, z. B. eingekaufte Güter und Dienstleistungen, erfassen Sie auch Teile Ihrer Scope 3 Emissionen. Dafür bietet sich ein CO2-Rechner an, welcher diese systematisch erfassen kann.
A6: Nutzen Sie dafür beispielsweise den kostenfreien Ecocockpit-Rechner und unsere Handlungshilfe Klimastrategie, die Sie Schritt für Schritt durch die Erstellung einer betrieblichen Klimabilanz führt.
A8: Emissionsquelle | B8: Energieträger | C8: Menge / Verbrauch | D8: Einheit | E8: Emissionsfaktor (t CO2e pro Einheit) | F8: Treibhausggasemission (CO2e in t) | G8: Quelle
A9: Mobilität
B10: Erdgas, CNG | C10: 500 | D10: Liter | E10: 0.000541 | F10: =IF(C10="(bitte eintragen)",0,C10*E10) -> 0.2705 | G10: DEFRA 2023, Fuels, Gasous Fuels, CNG, litres
B11: Erdgas, CNG | C11: (bitte eintragen) | D11: kWh | E11: 0.000339 | F11: =IF(C11="(bitte eintragen)",0,C11*E11) -> 0 | G11: UBA 2022: Emissionsbilanz erneuerbarer Energieträger
B12: Wasserstoff | C12: (bitte eintragen) | D12: kg | E12: 0.007499 | F12: =IF(C12="(bitte eintragen)",0,C12*E12) -> 0 | G12: SRU: Wasserstoff im Klimaschutz
B13: Elektro, Strommix Deutschland | C13: (bitte eintragen) | D13: kWh | E13: 0.000485 | F13: =IF(C13="(bitte eintragen)",0,C13*E13) -> 0 | G13: UBA 2022: Emissionsbilanz erneuerbarer Energieträger
B14: Benzin | C14: (bitte eintragen) | D14: Liter | E14: 0.00303 | F14: 0 | G14: UBA 2022: Emissionsbilanz erneuerbarer Energieträger
B15: Diesel | C15: 25 | D15: Liter | E15: 0.00341 | F15: 0.08525 | G15: UBA 2022: Emissionsbilanz erneuerbarer Energieträger
A16: Direkte Kältemittelemissionen (Leakagen)
B17: R22 | C17: (bitte eintragen) | D17: kg | E17: 1.886 | F17: =IF(C17="(bitte eintragen)",0,C17*E17) -> 0 | G17: Ökoinstitut Berlin + IFEU i. a. d. UBA 2011, Carbon Footprint - Teilgutachten "Monitoring für den CO2-Ausstoß in der Logistikkette", Tabelle 6 S. 35
B18: R134A | C18: (bitte eintragen) | D18: kg | E18: 1.533 | F18: 0 | G18: Ökoinstitut Berlin + IFEU i. a. d. UBA 2011, Carbon Footprint - Teilgutachten "Monitoring für den CO2-Ausstoß in der Logistikkette", Tabelle 6 S. 35
B19: R404A | C19: (bitte eintragen) | D19: kg | E19: 4.025 | F19: 0 | G19: Ökoinstitut Berlin + IFEU i. a. d. UBA 2011, Carbon Footprint - Teilgutachten "Monitoring für den CO2-Ausstoß in der Logistikkette", Tabelle 6 S. 35
B20: R410A | C20: (bitte eintragen) | D20: kg | E20: 2.177 | F20: 0 | G20: Ökoinstitut Berlin + IFEU i. a. d. UBA 2011, Carbon Footprint - Teilgutachten "Monitoring für den CO2-Ausstoß in der Logistikkette", Tabelle 6 S. 35
B21: R407C | C21: (bitte eintragen) | D21: kg | E21: 1.774 | F21: 0 | G21: Schweizer Bundesamt für Umwelt BAFU "Übersicht über die wichtigsten Kältemittel" Stand September 2020
B22: R407F | C22: (bitte eintragen) | D22: kg | E22: 1.825 | F22: 0 | G22: Schweizer Bundesamt für Umwelt BAFU "Übersicht über die wichtigsten Kältemittel" Stand September 2020
B23: R-600A (Isobutan) | C23: (bitte eintragen) | D23: kg | E23: 0.003 | F23: 0 | G23: Schweizer Bundesamt für Umwelt BAFU "Übersicht über die wichtigsten Kältemittel" Stand September 2020
B24: R744 (CO2) | C24: (bitte eintragen) | D24: kg | E24: 0.001 | F24: 0 | G24: Schweizer Bundesamt für Umwelt BAFU "Übersicht über die wichtigsten Kältemittel" Stand September 2020
B25: R717 (NH3) | C25: (bitte eintragen) | D25: kg | E25: 0 | F25: 0 | G25: Schweizer Bundesamt für Umwelt BAFU "Übersicht über die wichtigsten Kältemittel" Stand September 2020
A26: Wärme
B27: Erdgas | C27: (bitte eintragen) | D27: m³ | E27: 0.002302 | F27: =IF(C27="(bitte eintragen)",0,C27*E27) -> 0 | G27: UBA/DEHST: Leitfaden zur Erstellung von Überwachungsplänen und Emissionsberichterstattung
B28: Erdgas | C28: (bitte eintragen) | D28: kWh | E28: 0.000244 | F28: 0 | G28: UBA 2022: Emissionsbilanz erneuerbarer Energieträger
B29: Biogas Mix | C29: (bitte eintragen) | D29: m³ | E29: 0.000785 | F29: 0 | G29: UBA 2022: Emissionsbilanz erneuerbarer Energieträger
B30: Biogas Mix | C30: (bitte eintragen) | D30: kWh | E30: 0.000157 | F30: 0 | G30: UBA 2022: Emissionsbilanz erneuerbarer Energieträger
B31: Heizöl | C31: (bitte eintragen) | D31: Liter | E31: 0.003042 | F31: 0 | G31: UBA 2022: Emissionsbilanz erneuerbarer Energieträger
B32: Holzpellets | C32: (bitte eintragen) | D32: t | E32: 0.05279 | F32: 0 | G32: UBA 2022: Emissionsbilanz erneuerbarer Energieträger
B33: Hackschnitzel | C33: (bitte eintragen) | D33: t | E33: 0.065775 | F33: 0 | G33: UBA 2022: Emissionsbilanz erneuerbarer Energieträger
B34: Stückholz | C34: (bitte eintragen) | D34: t | E34: 0.101897 | F34: 0 | G34: UBA 2022: Emissionsbilanz erneuerbarer Energieträger
B35: Fernwärme | C35: (bitte eintragen) | D35: kWh | E35: 0.000295 | F35: 0 | G35: UBA 2022: Emissionsbilanz erneuerbarer Energieträger
B36: Flüssiggas | C36: (bitte eintragen) | D36: Liter | E36: 0.003052 | F36: 0 | G36: BAFA 2021 - Informationsblatt CO2-Faktoren
B37: Braunkohle | C37: (bitte eintragen) | D37: kWh | E37: 0.000442 | F37: 0 | G37: UBA 2022: Emissionsbilanz erneuerbarer Energieträger
B38: Steinkohle | C38: (bitte eintragen) | D38: kWh | E38: 0.000429 | F38: 0 | G38: UBA 2022: Emissionsbilanz erneuerbarer Energieträger
A39: Strom
B40: Strommix Deutschland | C40: (bitte eintragen) | D40: kWh | E40: 0.000485 | F40: =IF(C40="(bitte eintragen)",0,C40*E40) -> 0 | G40: UBA 2022: Entwicklung der spezifischen Treibhausgasemissionen des deutschen Strommix
B41: Strom-PV | C41: (bitte eintragen) | D41: kWh | E41: 5.61e-05 | F41: 0 | G41: UBA 2022: Emissionsbilanz erneuerbarer Energieträger
B42: Ökostrom-Mix | C42: (bitte eintragen) | D42: kWh | E42: 5.45e-05 | F42: 0 | G42: Auf Grundlage von UBA 2022: Emissionsbilanz erneuerbarer Energieträger
A43: Gesamtsumme | F43: =SUM(F10:F42) -> 0.35575
A46: Stand
A47: September 2023
A50: Impressum
A52: Herausgeber:
A53: Bayerisches Landesamt für Umwelt (LfU)
A54: Infozentrum UmweltWirtschaft (IZU)
A55: Bürgermeister-Ulrich-Straße 160
A56: 86179 Augsburg
A57: Telefon: 0821 9071 5509
A58: E-Mail: izu@lfu.bayern.de
A59: Internet: https://www.izu.bayern.de
A61: Bearbeitung:
A62: Landesagentur für Energie und Klimaschutz (LENK)
A64: Copyright:
A65: Bayerisches Landesamt für Umwelt (LfU)

Sheet Pivot
A1: Hilfsspalte 2 | B1: (Mehrere Elemente) | D1: Hilfsspalte 2 | E1: (Mehrere Elemente) | G1: Hilfsspalte 2 | H1: (Mehrere Elemente) | J1: Hilfsspalte 2 | K1: (Mehrere Elemente) | M1: Hilfsspalte 2 | N1: (Mehrere Elemente)
M2: Hilfsspalte Differenz | N2: (Alle) | P2: Hilfsspalte 2 | Q2: (Mehrere Elemente)
A3: Zeilenbeschriftungen | B3: Summe von Oberkategorie Summe | D3: Zeilenbeschriftungen | E3: Summe von V: Oberkategorie Summe | G3: Zeilenbeschriftungen | H3: Summe von Treibhausggasemission (CO2e in kg) | J3: Zeilenbeschriftungen | K3: Summe von V: Treibhausggasemission (CO2e in kg)
A4: Gesamtergebnis | D4: Gesamtergebnis | G4: Gesamtergebnis | J4: Gesamtergebnis | M4: Zeilenbeschriftungen | N4: Summe von Differenz | P4: Zeilenbeschriftungen | Q4: Summe von Differenz
M5: Gesamtergebnis | P5: Gesamtergebnis
